[Event "Early-Titled-Tuesday-Blitz-October-10-2023"]
[Site "Chess.com"]
[Date "2023.10.10"]
[Round "7"]
[White "SaqoChess_Twitch"]
[Black "BardArtem"]
[Result "0-1"]
[WhiteElo "2634"]
[BlackElo "2837"]
[TimeControl "180+1"]
[EndTime "9:16:09 PDT"]
[Termination "BardArtem won by resignation"]

1. d4 {[%clk 0:03:00.9]} 1... d5 {[%clk 0:02:59.9]} 2. c4 {[%clk 0:03:01.4]}
2... c6 {[%clk 0:02:58.4]} 3. Nc3 {[%clk 0:03:02]} 3... dxc4 {[%clk 0:02:58.1]}
4. a4 {[%clk 0:03:01.5]} 4... e5 {[%clk 0:02:57.8]} 5. e3 {[%clk 0:03:00]} 5...
exd4 {[%clk 0:02:58.2]} 6. exd4 {[%clk 0:03:00.9]} 6... Be6 {[%clk 0:02:58.6]}
7. Nf3 {[%clk 0:03:00]} 7... Nf6 {[%clk 0:02:57.1]} 8. Ne5 {[%clk 0:02:59.8]}
8... Nbd7 {[%clk 0:02:56.3]} 9. Nxc4 {[%clk 0:03:00.1]} 9... Bb4 {[%clk
0:02:56.2]} 10. Be3 {[%clk 0:02:59.8]} 10... O-O {[%clk 0:02:56.2]} 11. Bd3
{[%clk 0:02:59.5]} 11... Nb6 {[%clk 0:02:46.4]} 12. Nxb6 {[%clk 0:02:54.3]}
12... axb6 {[%clk 0:02:47.3]} 13. O-O {[%clk 0:02:53.9]} 13... Re8 {[%clk
0:02:42.7]} 14. Bg5 {[%clk 0:02:42.1]} 14... h6 {[%clk 0:02:38.3]} 15. Bh4
{[%clk 0:02:39.9]} 15... Be7 {[%clk 0:02:37.6]} 16. h3 {[%clk 0:02:38.6]} 16...
Nd5 {[%clk 0:02:37]} 17. Bg3 {[%clk 0:02:34]} 17... Bf6 {[%clk 0:02:33.1]} 18.
Be5 {[%clk 0:02:25.5]} 18... Bxe5 {[%clk 0:02:20.5]} 19. dxe5 {[%clk 0:02:24.4]}
19... Nf4 {[%clk 0:02:21.4]} 20. Be4 {[%clk 0:02:11.5]} 20... Qg5 {[%clk
0:02:21]} 21. Kh2 {[%clk 0:02:07.8]} 21... Qxe5 {[%clk 0:02:18.2]} 22. g3 {[%clk
0:02:07.6]} 22... Rad8 {[%clk 0:02:01.5]} 23. Qe1 {[%clk 0:01:52]} 23... Nd3
{[%clk 0:01:36.8]} 24. Bxd3 {[%clk 0:01:24.2]} 24... Qxe1 {[%clk 0:01:35.9]} 25.
Rfxe1 {[%clk 0:01:24.6]} 25... Rxd3 {[%clk 0:01:36.2]} 26. Re2 {[%clk 0:01:19]}
26... Red8 {[%clk 0:01:32.4]} 27. a5 {[%clk 0:01:17.8]} 27... Ra8 {[%clk
0:01:13.8]} 28. a6 {[%clk 0:00:58.8]} 28... Rxa6 {[%clk 0:01:09.8]} 29. Rxa6
{[%clk 0:00:57.4]} 29... bxa6 {[%clk 0:01:10.7]} 30. Na4 {[%clk 0:00:58]} 30...
Rb3 {[%clk 0:01:06.3]} 31. Rd2 {[%clk 0:00:57.1]} 31... Bd5 {[%clk 0:00:56.2]}
32. g4 {[%clk 0:00:56.6]} 32... a5 {[%clk 0:00:51.8]} 33. f4 {[%clk 0:00:49]}
33... Rb4 {[%clk 0:00:48.6]} 34. Nc3 {[%clk 0:00:46.8]} 34... Rxf4 {[%clk
0:00:48.7]} 35. Nxd5 {[%clk 0:00:44.7]} 35... cxd5 {[%clk 0:00:49.6]} 36. Rxd5
{[%clk 0:00:45.4]} 36... Rf2+ {[%clk 0:00:50]} 37. Kg3 {[%clk 0:00:45]} 37...
Rxb2 {[%clk 0:00:50.9]} 38. Rd8+ {[%clk 0:00:44.4]} 38... Kh7 {[%clk 0:00:51.3]}
39. Rd7 {[%clk 0:00:45.3]} 39... f6 {[%clk 0:00:48.5]} 40. h4 {[%clk 0:00:45]}
40... b5 {[%clk 0:00:48.5]} 41. h5 {[%clk 0:00:45.4]} 41... a4 {[%clk
0:00:48.8]} 42. Ra7 {[%clk 0:00:40.9]} 42... Rb3+ {[%clk 0:00:48.5]} 43. Kf4
{[%clk 0:00:33.7]} 43... a3 {[%clk 0:00:49.4]} 44. Kf5 {[%clk 0:00:33]} 44... b4
{[%clk 0:00:46.8]} 45. Ke6 {[%clk 0:00:33.4]} 45... Rg3 {[%clk 0:00:43.4]} 46.
Kf5 {[%clk 0:00:25.4]} 46... b3 {[%clk 0:00:40.1]} 47. Rxa3 {[%clk 0:00:24.7]}
47... b2 {[%clk 0:00:40.6]} 48. Rxg3 {[%clk 0:00:25.1]} 48... b1=Q+ {[%clk
0:00:40.9]} 49. Kf4 {[%clk 0:00:25.5]} 49... Qb8+ {[%clk 0:00:40.3]} 50. Kf3
{[%clk 0:00:25.6]} 50... Qe5 {[%clk 0:00:40.5]} 51. Rg2 {[%clk 0:00:25.2]} 51...
f5 {[%clk 0:00:41]} 52. g5 {[%clk 0:00:23.3]} 52... Qe4+ {[%clk 0:00:41.3]} 53.
Kg3 {[%clk 0:00:22.7]} 53... hxg5 {[%clk 0:00:41.5]} 54. h6 {[%clk 0:00:21.7]}
54... gxh6 {[%clk 0:00:40.1]} 55. Ra2 {[%clk 0:00:22.1]} 55... Kg6 {[%clk
0:00:37.8]} 56. Kh3 {[%clk 0:00:22.4]} 56... Qf3+ {[%clk 0:00:34.6]} 57. Kh2
{[%clk 0:00:22.6]} 57... g4 {[%clk 0:00:33.4]} 58. Kg1 {[%clk 0:00:22.2]} 58...
Qg3+ {[%clk 0:00:31.7]} 59. Kh1 {[%clk 0:00:21.8]} 59... Qe1+ {[%clk 0:00:32.1]}
60. Kh2 {[%clk 0:00:21.1]} 60... Qe5+ {[%clk 0:00:30]} 61. Kg1 {[%clk
0:00:21.2]} 61... Qd4+ {[%clk 0:00:30.3]} 62. Kh2 {[%clk 0:00:20.2]} 62... Kg5
{[%clk 0:00:29.9]} 63. Ra8 {[%clk 0:00:17]} 63... Qf2+ {[%clk 0:00:28.5]} 64.
Kh1 {[%clk 0:00:16.7]} 64... Qf3+ {[%clk 0:00:29.4]} 65. Kh2 {[%clk 0:00:17.2]}
65... Qxa8 {[%clk 0:00:29.4]} 0-1

[Event "Early-Titled-Tuesday-Blitz-October-10-2023"]
[Site "Chess.com"]
[Date "2023.10.10"]
[Round "7"]
[White "Karttunen"]
[Black "Herzog2012"]
[Result "0-1"]
[WhiteElo "2638"]
[BlackElo "2517"]
[TimeControl "180+1"]
[EndTime "9:16:09 PDT"]
[Termination "Herzog2012 won on time"]

1. d4 {[%clk 0:03:00.9]} 1... Nf6 {[%clk 0:02:59.7]} 2. Bf4 {[%clk 0:03:00.2]}
2... e6 {[%clk 0:02:59.9]} 3. e3 {[%clk 0:02:59.8]} 3... c5 {[%clk 0:02:59.8]}
4. c3 {[%clk 0:02:59.7]} 4... b6 {[%clk 0:02:59.4]} 5. Nf3 {[%clk 0:02:59]} 5...
Bb7 {[%clk 0:02:59.9]} 6. Nbd2 {[%clk 0:02:58.8]} 6... Be7 {[%clk 0:03:00.4]} 7.
Bd3 {[%clk 0:02:58.9]} 7... Nh5 {[%clk 0:02:59.6]} 8. Be5 {[%clk 0:02:58.1]}
8... d6 {[%clk 0:02:55.9]} 9. Bg3 {[%clk 0:02:43.9]} 9... h6 {[%clk 0:02:48.7]}
10. Bb5+ {[%clk 0:02:19.8]} 10... Bc6 {[%clk 0:02:30.7]} 11. Bxc6+ {[%clk
0:01:41.8]} 11... Nxc6 {[%clk 0:02:31.6]} 12. Qa4 {[%clk 0:01:21]} 12... Qd7
{[%clk 0:02:27.3]} 13. e4 {[%clk 0:01:10.8]} 13... Nxg3 {[%clk 0:02:14.4]} 14.
hxg3 {[%clk 0:01:09.9]} 14... cxd4 {[%clk 0:02:13.6]} 15. cxd4 {[%clk
0:01:07.9]} 15... d5 {[%clk 0:02:02]} 16. exd5 {[%clk 0:01:00.8]} 16... exd5
{[%clk 0:01:55.2]} 17. Rc1 {[%clk 0:01:00.7]} 17... Nd8 {[%clk 0:00:48.2]} 18.
Qb3 {[%clk 0:00:31]} 18... Bf6 {[%clk 0:00:44.1]} 19. O-O {[%clk 0:00:23.7]}
19... O-O {[%clk 0:00:42.1]} 20. Rfe1 {[%clk 0:00:19]} 20... Ne6 {[%clk
0:00:42.2]} 21. Qd3 {[%clk 0:00:16.6]} 21... Rac8 {[%clk 0:00:40.3]} 22. Nf1
{[%clk 0:00:14.9]} 22... Rxc1 {[%clk 0:00:38.4]} 23. Rxc1 {[%clk 0:00:14.7]}
23... Rc8 {[%clk 0:00:38.3]} 24. Rd1 {[%clk 0:00:11.9]} 24... Qa4 {[%clk
0:00:35.9]} 25. a3 {[%clk 0:00:10.9]} 25... Qc2 {[%clk 0:00:33.6]} 26. Rd2
{[%clk 0:00:07.6]} 26... Qxd3 {[%clk 0:00:32.4]} 27. Rxd3 {[%clk 0:00:08.1]}
27... Kf8 {[%clk 0:00:17]} 28. Ne3 {[%clk 0:00:07.4]} 28... Rd8 {[%clk
0:00:17.1]} 29. Kf1 {[%clk 0:00:07.4]} 29... Ke7 {[%clk 0:00:17]} 30. Ke2 {[%clk
0:00:07.8]} 30... g6 {[%clk 0:00:16.4]} 31. Rd1 {[%clk 0:00:06.4]} 31... Kd6
{[%clk 0:00:15.3]} 32. Kd3 {[%clk 0:00:06.8]} 32... Rc8 {[%clk 0:00:15.5]} 33.
b3 {[%clk 0:00:06.6]} 33... h5 {[%clk 0:00:15.2]} 34. a4 {[%clk 0:00:06.2]}
34... a5 {[%clk 0:00:13.9]} 35. Nc2 {[%clk 0:00:05.7]} 35... Rc6 {[%clk
0:00:11.1]} 36. Re1 {[%clk 0:00:05.4]} 36... Bg7 {[%clk 0:00:06.9]} 37. Na3
{[%clk 0:00:06]} 37... Nc7 {[%clk 0:00:06.1]} 38. Nb1 {[%clk 0:00:05.8]} 38...
Na6 {[%clk 0:00:05.9]} 39. Nc3 {[%clk 0:00:05.5]} 39... Nb4+ {[%clk 0:00:06.2]}
40. Kd2 {[%clk 0:00:05]} 40... Bh6+ {[%clk 0:00:06.6]} 41. Re3 {[%clk
0:00:05.4]} 41... Bxe3+ {[%clk 0:00:06.4]} 42. fxe3 {[%clk 0:00:06.3]} 42... Ke7
{[%clk 0:00:04.1]} 43. Ne1 {[%clk 0:00:03.1]} 43... Rf6 {[%clk 0:00:04.1]} 44.
Nf3 {[%clk 0:00:03.3]} 44... g5 {[%clk 0:00:03.3]} 45. Ke2 {[%clk 0:00:02.5]}
45... g4 {[%clk 0:00:03.5]} 46. Ne5 {[%clk 0:00:02.6]} 46... Re6 {[%clk
0:00:04.1]} 47. Kd2 {[%clk 0:00:01.2]} 47... Kf6 {[%clk 0:00:03.2]} 0-1

[Event "Early-Titled-Tuesday-Blitz-October-10-2023"]
[Site "Chess.com"]
[Date "2023.10.10"]
[Round "7"]
[White "esrosenberg"]
[Black "banane_verte"]
[Result "0-1"]
[WhiteElo "2379"]
[BlackElo "2523"]
[TimeControl "180+1"]
[EndTime "9:16:10 PDT"]
[Termination "banane_verte won by resignation"]

1. d4 {[%clk 0:03:00.9]} 1... d5 {[%clk 0:02:52.5]} 2. Nf3 {[%clk 0:03:00.8]}
2... Nf6 {[%clk 0:02:51.5]} 3. g3 {[%clk 0:03:01.1]} 3... g6 {[%clk 0:02:50.7]}
4. Bg2 {[%clk 0:03:00.4]} 4... Bg7 {[%clk 0:02:51.6]} 5. O-O {[%clk 0:02:59]}
5... O-O {[%clk 0:02:52.5]} 6. c3 {[%clk 0:02:59]} 6... Bf5 {[%clk 0:02:51]} 7.
Qb3 {[%clk 0:02:58.4]} 7... b6 {[%clk 0:02:45.7]} 8. Ne5 {[%clk 0:02:55.4]} 8...
Be4 {[%clk 0:02:41.2]} 9. f3 {[%clk 0:02:55.3]} 9... Bf5 {[%clk 0:02:41.1]} 10.
Nd2 {[%clk 0:02:54.7]} 10... Nfd7 {[%clk 0:02:39.8]} 11. Qxd5 {[%clk 0:02:50.5]}
11... c6 {[%clk 0:02:33.6]} 12. Nxc6 {[%clk 0:02:46.2]} 12... Nxc6 {[%clk
0:02:34.5]} 13. Qxc6 {[%clk 0:02:46.6]} 13... Rc8 {[%clk 0:02:34]} 14. Qa4
{[%clk 0:02:45.9]} 14... e5 {[%clk 0:02:34.5]} 15. e4 {[%clk 0:02:45.8]} 15...
Be6 {[%clk 0:02:26]} 16. d5 {[%clk 0:02:40]} 16... Nc5 {[%clk 0:02:26.4]} 17.
Qxa7 {[%clk 0:02:40.6]} 17... Ra8 {[%clk 0:02:25.1]} 18. Qxa8 {[%clk 0:02:38.2]}
18... Qxa8 {[%clk 0:02:24.9]} 19. dxe6 {[%clk 0:02:38.8]} 19... Nxe6 {[%clk
0:02:16.6]} 20. Nb3 {[%clk 0:02:35.9]} 20... Rd8 {[%clk 0:02:11]} 21. Be3 {[%clk
0:02:33.5]} 21... Qc6 {[%clk 0:02:07.3]} 22. Rfd1 {[%clk 0:02:23.3]} 22... Rxd1+
{[%clk 0:02:06.9]} 23. Rxd1 {[%clk 0:02:23.2]} 23... Bf8 {[%clk 0:02:07.8]} 24.
Rd5 {[%clk 0:02:19.8]} 24... Qa4 {[%clk 0:01:59.4]} 25. Nc1 {[%clk 0:02:17.1]}
25... Bc5 {[%clk 0:01:55.7]} 26. Bxc5 {[%clk 0:02:06.2]} 26... Nxc5 {[%clk
0:01:56.6]} 27. Rd2 {[%clk 0:01:54.6]} 27... f5 {[%clk 0:01:31.8]} 28. exf5
{[%clk 0:01:54.1]} 28... gxf5 {[%clk 0:01:30.9]} 29. Bf1 {[%clk 0:01:54.8]}
29... e4 {[%clk 0:01:27.7]} 30. b4 {[%clk 0:01:49.7]} 30... Ne6 {[%clk
0:01:18.3]} 31. fxe4 {[%clk 0:01:49.5]} 31... Ng5 {[%clk 0:01:17.6]} 32. Bc4+
{[%clk 0:01:49.1]} 32... Kg7 {[%clk 0:01:16.3]} 33. Bb3 {[%clk 0:01:26.8]} 33...
Qc6 {[%clk 0:01:08]} 34. Rd3 {[%clk 0:01:26.9]} 34... Qxe4 {[%clk 0:01:05.3]}
35. Rd7+ {[%clk 0:01:23.8]} 35... Kh6 {[%clk 0:01:03.7]} 36. Nd3 {[%clk
0:01:22.6]} 36... Nh3+ {[%clk 0:01:02.9]} 37. Kf1 {[%clk 0:01:21.5]} 37... Qh1+
{[%clk 0:00:49]} 38. Ke2 {[%clk 0:01:21.1]} 38... Qxh2+ {[%clk 0:00:49.4]} 39.
Kd1 {[%clk 0:01:20.8]} 39... Qxg3 {[%clk 0:00:44.7]} 40. Kc2 {[%clk 0:01:19.4]}
40... f4 {[%clk 0:00:42.4]} 41. Rd6+ {[%clk 0:01:18.2]} 41... Kg5 {[%clk
0:00:41.7]} 42. Rd5+ {[%clk 0:01:07.8]} 42... Kh4 {[%clk 0:00:41.9]} 43. Rd4
{[%clk 0:01:05.8]} 43... h5 {[%clk 0:00:38.8]} 44. Be6 {[%clk 0:01:05.1]} 44...
Kg5 {[%clk 0:00:33]} 45. Bxh3 {[%clk 0:00:56.9]} 45... Qxh3 {[%clk 0:00:33.9]}
46. Nxf4 {[%clk 0:00:47.8]} 46... Qh2+ {[%clk 0:00:30.4]} 47. Kd3 {[%clk
0:00:47.5]} 47... h4 {[%clk 0:00:30.4]} 48. Nd5 {[%clk 0:00:42.4]} 48... h3
{[%clk 0:00:26.9]} 49. Ne3 {[%clk 0:00:42.8]} 49... Qxa2 {[%clk 0:00:24]} 50.
Rd5+ {[%clk 0:00:42.5]} 50... Qxd5+ {[%clk 0:00:19.7]} 51. Nxd5 {[%clk
0:00:42.8]} 51... h2 {[%clk 0:00:20.3]} 52. Nxb6 {[%clk 0:00:41.6]} 52... h1=Q
{[%clk 0:00:21.2]} 53. c4 {[%clk 0:00:22.2]} 53... Kf6 {[%clk 0:00:20.2]} 54.
Nd5+ {[%clk 0:00:21.8]} 54... Ke5 {[%clk 0:00:20.7]} 55. Ke3 {[%clk 0:00:21.8]}
55... Qe4+ {[%clk 0:00:20]} 56. Kd2 {[%clk 0:00:22.3]} 56... Qxc4 {[%clk
0:00:20.9]} 57. Nc3 {[%clk 0:00:22.6]} 57... Qxb4 {[%clk 0:00:20.7]} 58. Kd3
{[%clk 0:00:23.5]} 58... Qb3 {[%clk 0:00:20.9]} 59. Kd2 {[%clk 0:00:22.7]} 59...
Kd4 {[%clk 0:00:20.4]} 60. Ne2+ {[%clk 0:00:23.4]} 60... Kc4 {[%clk 0:00:20.9]}
61. Nc1 {[%clk 0:00:22.9]} 61... Qb2+ {[%clk 0:00:20.8]} 62. Kd1 {[%clk
0:00:22.9]} 62... Kc3 {[%clk 0:00:20]} 63. Ne2+ {[%clk 0:00:22.8]} 63... Kd3
{[%clk 0:00:20.7]} 64. Nc1+ {[%clk 0:00:23.2]} 64... Ke3 {[%clk 0:00:21.4]} 0-1

[Event "Early-Titled-Tuesday-Blitz-October-10-2023"]
[Site "Chess.com"]
[Date "2023.10.10"]
[Round "7"]
[White "LamaChampetre"]
[Black "FMStan15"]
[Result "1-0"]
[WhiteElo "2245"]
[BlackElo "2108"]
[TimeControl "180+1"]
[EndTime "9:16:11 PDT"]
[Termination "LamaChampetre won on time"]

1. d4 {[%clk 0:03:00.9]} 1... Nf6 {[%clk 0:02:58.9]} 2. c4 {[%clk 0:02:59.9]}
2... g6 {[%clk 0:02:58.9]} 3. Nc3 {[%clk 0:02:59.3]} 3... d6 {[%clk 0:02:59.2]}
4. e4 {[%clk 0:02:59.4]} 4... Bg7 {[%clk 0:03:00.1]} 5. h3 {[%clk 0:02:59.9]}
5... O-O {[%clk 0:03:00]} 6. Nf3 {[%clk 0:03:00.8]} 6... e5 {[%clk 0:03:00.2]}
7. d5 {[%clk 0:03:00.8]} 7... Nh5 {[%clk 0:02:56.9]} 8. g3 {[%clk 0:03:00.2]}
8... a5 {[%clk 0:02:56]} 9. Be3 {[%clk 0:03:00]} 9... Na6 {[%clk 0:02:55.9]} 10.
Be2 {[%clk 0:02:59.8]} 10... Nc5 {[%clk 0:02:54.1]} 11. Nd2 {[%clk 0:03:00]}
11... Nf6 {[%clk 0:02:54.4]} 12. g4 {[%clk 0:02:59.3]} 12... Ne8 {[%clk
0:02:53.3]} 13. h4 {[%clk 0:02:58.1]} 13... f5 {[%clk 0:02:53.6]} 14. exf5
{[%clk 0:02:55.3]} 14... gxf5 {[%clk 0:02:53.6]} 15. h5 {[%clk 0:02:55]} 15...
fxg4 {[%clk 0:02:37]} 16. Nde4 {[%clk 0:02:31.2]} 16... Nf6 {[%clk 0:02:15.4]}
17. Nxc5 {[%clk 0:02:14.1]} 17... dxc5 {[%clk 0:02:15.2]} 18. Bxc5 {[%clk
0:02:14.4]} 18... Re8 {[%clk 0:02:12.2]} 19. Be3 {[%clk 0:02:12.8]} 19... Bf5
{[%clk 0:02:09.2]} 20. Rg1 {[%clk 0:02:06.8]} 20... Qd7 {[%clk 0:02:03.6]} 21.
h6 {[%clk 0:02:06.6]} 21... Bf8 {[%clk 0:02:00.5]} 22. Qd2 {[%clk 0:02:04.4]}
22... Bb4 {[%clk 0:01:58]} 23. O-O-O {[%clk 0:01:44]} 23... Ne4 {[%clk
0:01:57.5]} 24. Bxg4 {[%clk 0:01:10.9]} 24... Bxg4 {[%clk 0:01:47.2]} 25. Qe2
{[%clk 0:01:10.4]} 25... Nxc3 {[%clk 0:01:26]} 26. Rxg4+ {[%clk 0:01:06.2]}
26... Kh8 {[%clk 0:01:24.5]} 27. bxc3 {[%clk 0:01:03.3]} 27... Ba3+ {[%clk
0:01:02.5]} 28. Kb1 {[%clk 0:00:56.9]} 28... Qf5+ {[%clk 0:00:58.4]} 29. Ka1
{[%clk 0:00:51.8]} 29... Rg8 {[%clk 0:00:54.7]} 30. Rdg1 {[%clk 0:00:42.8]}
30... Rxg4 {[%clk 0:00:45.6]} 31. Qxg4 {[%clk 0:00:42.5]} 31... Qxg4 {[%clk
0:00:44.3]} 32. Rxg4 {[%clk 0:00:42.5]} 32... Rf8 {[%clk 0:00:32.1]} 33. Kb1
{[%clk 0:00:41.5]} 33... Rf7 {[%clk 0:00:24.6]} 34. Kc2 {[%clk 0:00:39]} 34...
Bd6 {[%clk 0:00:24.6]} 35. Kd3 {[%clk 0:00:33.4]} 35... b6 {[%clk 0:00:24.8]}
36. Ke4 {[%clk 0:00:32.9]} 36... a4 {[%clk 0:00:20.7]} 37. Rg1 {[%clk
0:00:18.5]} 37... a3 {[%clk 0:00:20.5]} 38. Kd3 {[%clk 0:00:17.7]} 38... Rf5
{[%clk 0:00:18.2]} 39. Rg4 {[%clk 0:00:16.2]} 39... Rf7 {[%clk 0:00:17.9]} 40.
Ke2 {[%clk 0:00:15.3]} 40... Rf5 {[%clk 0:00:14.9]} 41. Bg5 {[%clk 0:00:13.9]}
41... Rf7 {[%clk 0:00:11.3]} 42. Bh4 {[%clk 0:00:13.1]} 42... Rf5 {[%clk
0:00:10.1]} 43. Bg3 {[%clk 0:00:08.4]} 43... Rh5 {[%clk 0:00:08.1]} 44. Rh4
{[%clk 0:00:07.6]} 44... Rf5 {[%clk 0:00:07.9]} 45. Rh3 {[%clk 0:00:07.2]} 45...
e4 {[%clk 0:00:05.4]} 46. Bxd6 {[%clk 0:00:06.8]} 46... cxd6 {[%clk 0:00:05.2]}
47. Rh4 {[%clk 0:00:07.3]} 47... Rf3 {[%clk 0:00:03]} 48. Rxe4 {[%clk
0:00:06.2]} 48... Rf8 {[%clk 0:00:02]} 49. Re6 {[%clk 0:00:05.7]} 49... Kg8
{[%clk 0:00:01.3]} 50. Rxd6 {[%clk 0:00:06]} 1-0

[Event "Early-Titled-Tuesday-Blitz-October-10-2023"]
[Site "Chess.com"]
[Date "2023.10.10"]
[Round "7"]
[White "Abund"]
[Black "DanielTitichoca"]
[Result "1-0"]
[WhiteElo "2787"]
[BlackElo "2629"]
[TimeControl "180+1"]
[EndTime "9:16:14 PDT"]
[Termination "Abund won by resignation"]

1. Nf3 {[%clk 0:03:00.9]} 1... g6 {[%clk 0:02:59]} 2. g3 {[%clk 0:02:58.2]} 2...
Bg7 {[%clk 0:02:59.5]} 3. Bg2 {[%clk 0:02:58.9]} 3... e5 {[%clk 0:02:59.9]} 4.
e4 {[%clk 0:02:57]} 4... Nc6 {[%clk 0:02:59.9]} 5. O-O {[%clk 0:02:57.3]} 5...
Nge7 {[%clk 0:03:00.4]} 6. c3 {[%clk 0:02:57.3]} 6... O-O {[%clk 0:02:59.9]} 7.
d4 {[%clk 0:02:57.4]} 7... d6 {[%clk 0:02:55.3]} 8. Re1 {[%clk 0:02:53.2]} 8...
h6 {[%clk 0:02:52.3]} 9. a4 {[%clk 0:02:52.2]} 9... Bg4 {[%clk 0:02:50]} 10. Be3
{[%clk 0:02:48.2]} 10... f5 {[%clk 0:02:37.7]} 11. exf5 {[%clk 0:02:34.2]} 11...
Nxf5 {[%clk 0:02:36.5]} 12. Qb3+ {[%clk 0:02:27.8]} 12... Kh8 {[%clk 0:02:31.2]}
13. Qxb7 {[%clk 0:02:26.9]} 13... Na5 {[%clk 0:02:12]} 14. Qa6 {[%clk
0:02:16.7]} 14... exd4 {[%clk 0:01:53]} 15. Bxd4 {[%clk 0:02:05.7]} 15... Nxd4
{[%clk 0:01:50.8]} 16. Nxd4 {[%clk 0:02:05.3]} 16... Bxd4 {[%clk 0:01:24.5]} 17.
cxd4 {[%clk 0:02:03.5]} 17... Nb3 {[%clk 0:01:25.1]} 18. Ra3 {[%clk 0:01:53.7]}
18... Nxd4 {[%clk 0:01:23.4]} 19. Nd2 {[%clk 0:01:50]} 19... Rb8 {[%clk
0:01:12.1]} 20. Qd3 {[%clk 0:01:45.3]} 20... Qf6 {[%clk 0:01:10.7]} 21. Ne4
{[%clk 0:01:26.5]} 21... Qg7 {[%clk 0:01:08.3]} 22. b3 {[%clk 0:00:50.3]} 22...
Rbe8 {[%clk 0:00:40.9]} 23. Re3 {[%clk 0:00:43.7]} 23... Nf5 {[%clk 0:00:40.1]}
24. Re1 {[%clk 0:00:24.7]} 24... Nd4 {[%clk 0:00:40.4]} 25. Re3 {[%clk
0:00:23.8]} 25... d5 {[%clk 0:00:33.2]} 26. Nd2 {[%clk 0:00:20.7]} 26... Nf5
{[%clk 0:00:33.4]} 27. Rxe8 {[%clk 0:00:18.2]} 27... Rxe8 {[%clk 0:00:32.7]} 28.
h3 {[%clk 0:00:18.4]} 28... Be2 {[%clk 0:00:25.8]} 29. Qxd5 {[%clk 0:00:18.2]}
29... Qe7 {[%clk 0:00:24.5]} 30. Ra1 {[%clk 0:00:17.2]} 30... Rd8 {[%clk
0:00:24.7]} 31. Qc6 {[%clk 0:00:11.6]} 31... Rxd2 {[%clk 0:00:17.9]} 32. Re1
{[%clk 0:00:07.1]} 32... Qd6 {[%clk 0:00:12]} 33. Qa8+ {[%clk 0:00:06]} 33...
Kg7 {[%clk 0:00:11.1]} 34. Qxa7 {[%clk 0:00:06.4]} 34... Qb6 {[%clk 0:00:05.3]}
35. Qa8 {[%clk 0:00:05.7]} 35... Nxg3 {[%clk 0:00:03.5]} 36. a5 {[%clk 0:00:03]}
36... Qc5 {[%clk 0:00:02.2]} 37. Qb7 {[%clk 0:00:03.1]} 37... Bb5 {[%clk
0:00:02.7]} 38. Qf3 {[%clk 0:00:03.1]} 38... Qxf2+ {[%clk 0:00:02.7]} 39. Qxf2
{[%clk 0:00:03.5]} 39... Rxf2 {[%clk 0:00:03.4]} 40. Kxf2 {[%clk 0:00:04.4]}
40... Nf5 {[%clk 0:00:03.9]} 41. Re5 {[%clk 0:00:04.7]} 41... Nd4 {[%clk
0:00:03.7]} 42. Rxb5 {[%clk 0:00:04.6]} 42... Nxb5 {[%clk 0:00:03.9]} 43. Ke3
{[%clk 0:00:05.4]} 43... Na7 {[%clk 0:00:03.7]} 44. Kd4 {[%clk 0:00:05.6]} 44...
Kf6 {[%clk 0:00:04.4]} 45. Kc5 {[%clk 0:00:05.5]} 45... Ke5 {[%clk 0:00:05]} 46.
b4 {[%clk 0:00:06.1]} 46... Kf4 {[%clk 0:00:05.1]} 47. b5 {[%clk 0:00:06.3]}
47... Kg3 {[%clk 0:00:05.2]} 48. Bd5 {[%clk 0:00:06.3]} 48... Kxh3 {[%clk
0:00:04.8]} 49. Be6+ {[%clk 0:00:06.7]} 49... Kg3 {[%clk 0:00:04.3]} 50. b6
{[%clk 0:00:07.4]} 50... cxb6+ {[%clk 0:00:04.3]} 51. axb6 {[%clk 0:00:08.3]}
1-0